fUSD/lending_fUSD_20250804
["ID","MTS","AMOUNT","RATE_DAILY","PERIOD"]
[377229926,1754305889408,-2271.19,0.0003863,2]
[377229927,1754305889418,-400.0,0.0003863,2]
[377229928,1754305889431,-1233.77,0.0003863,2]
[377229929,1754305889440,-1370.77,0.0003863,2]
[377229930,1754305889451,-920.62,0.0003863,2]
[377229931,1754305889461,-400.0,0.0003863,2]
[377229932,1754305889471,-400.0,0.0003863,2]
[377229933,1754305889481,-1817.19,0.0003863,2]
[377229934,1754305889491,-1888.39,0.0003863,2]
[377229935,1754305889500,-1431.25,0.0003863,2]
[377229936,1754305889510,-1907.39,0.0003863,2]
[377229937,1754305889519,-400.0,0.0003863,2]
[377229938,1754305889529,-400.0,0.0003863,2]
[377229939,1754305889539,-1147.83,0.0003863,2]
[377229940,1754305889548,-400.0,0.0003863,2]
[377229941,1754305889558,-400.0,0.0003863,2]
[377229942,1754305889567,-400.0,0.0003863,2]
[377229943,1754305889577,-400.0,0.0003863,2]
[377229944,1754305889586,-400.0,0.0003863,2]
[377229945,1754305889596,-2068.75,0.0003863,2]
[377229946,1754305889605,-400.0,0.0003863,2]
[377229947,1754305889615,-2687.79,0.0003863,2]
[377229948,1754305889628,-400.0,0.0003863,2]
[377229949,1754305889638,-2214.61,0.0003863,2]
[377229950,1754305889648,-400.0,0.0003863,2]
[377229951,1754305889657,-1614.22,0.0003863,2]
[377229952,1754305889667,-802.2,0.0003863,2]
[377229953,1754305889676,-670.02,0.0003863,2]
[377229954,1754305889685,-1475.5,0.0003863,2]
[377229955,1754305889694,-78789.54,0.0003863,2]
[377229956,1754305889704,-400.0,0.0003863,2]
[377229957,1754305889714,-400.0,0.0003863,2]
[377229958,1754305889724,-400.0,0.0003863,2]
[377229959,1754305889733,-579.73,0.0003863,2]
[377229960,1754305889742,-2169.93,0.0003863,2]
[377229961,1754305889752,-400.0,0.0003863,2]
[377229962,1754305889762,-400.0,0.0003863,2]
[377229963,1754305889772,-1690.87,0.0003863,2]
[377229964,1754305889781,-11200.4,0.0003863,2]
[377229965,1754305889791,-1258.18,0.0003863,2]
[377229966,1754305889801,-1594.85,0.0003863,2]
[377229967,1754305889810,-400.0,0.0003863,2]
[377229968,1754305889820,-1475.71,0.0003863,2]
[377229969,1754305889829,-1778.93,0.0003863,2]
[377229970,1754305889839,-400.0,0.0003863,2]
[377229971,1754305889848,-400.0,0.0003863,2]
[377229972,1754305889858,-1043.71,0.0003863,2]
[377229973,1754305889867,-898.73,0.0003863,2]
[377229974,1754305889877,-498.32,0.0003863,2]
[377229975,1754305889886,-3118.04,0.0003863,2]
[377229976,1754305889896,-1556.28,0.0003863,2]
[377229977,1754305889910,-1857.39,0.0003863,2]
[377229978,1754305889920,-7506.25,0.0003863,2]
[377229979,1754305889930,-285.365468,0.0003863,14]
[377229980,1754305889939,-1191.23,0.0003863,2]
[377229981,1754305889949,-400.0,0.0003863,2]
[377229982,1754305889959,-1349.97,0.0003863,2]
[377229983,1754305889968,-577.79,0.0003863,2]
[377229984,1754305889978,-1074.04,0.0003863,2]
[377229985,1754305889988,-3769.24,0.0003863,2]
[377229986,1754305889997,-988.14,0.0003863,2]
[377229987,1754305890007,-400.0,0.0003863,2]
[377229988,1754305890017,-3095.42,0.0003863,2]
[377229989,1754305890026,-1741.31,0.0003863,2]
[377229990,1754305890035,-741.487238,0.0003863,14]
[377229991,1754305890045,-1252.42,0.0003863,2]
[377229992,1754305890055,-400.0,0.0003863,2]
[377229993,1754305890065,-1932.57,0.0003863,2]
[377229994,1754305890081,-1985.84,0.0003863,2]
[377229995,1754305890090,-400.0,0.0003863,2]
[377229996,1754305890099,-741.487238,0.0003863,14]
[377229997,1754305890109,-1555.06,0.0003863,2]
[377229998,1754305890118,-3383.45,0.0003863,2]
[377229999,1754305890128,-151.0,0.0003863,14]
[377230000,1754305890138,-1602.8,0.0003863,2]
[377230001,1754305890148,-3681.37,0.0003863,2]
[377230002,1754305890157,-400.0,0.0003863,2]
[377230003,1754305890167,-400.0,0.0003863,2]
[377230004,1754305890177,-495.93,0.0003863,2]
[377230005,1754305890187,-2072.61,0.0003863,2]
[377230006,1754305890197,-464.680369,0.0003863,2]
[377230007,1754305890207,-1753.85,0.0003863,2]
[377230008,1754305890217,-285.365468,0.0003863,14]
[377230009,1754305890226,-1605.29,0.0003863,2]
[377230010,1754305890235,-400.0,0.0003863,2]
[377230011,1754305890245,-400.0,0.0003863,2]
[377230012,1754305890254,-400.0,0.0003863,2]
[377230013,1754305890265,-400.0,0.0003863,2]
[377230014,1754305890275,-1657.08,0.0003863,2]
[377230015,1754305890284,-1726.45,0.0003863,2]
[377230016,1754305890294,-2197.37,0.0003863,2]
[377230017,1754305890304,-1613.77,0.0003863,2]
[377230018,1754305890313,-400.0,0.0003863,2]
[377230019,1754305890324,-1109.72,0.0003863,2]
[377230020,1754305890334,-400.0,0.0003863,2]
[377230021,1754305890343,-400.0,0.0003863,2]
[377230022,1754305890353,-1265.39,0.0003863,2]
[377230023,1754305890362,-442.82288127,0.0003863,2]
[377230024,1754305890371,-400.0,0.0003863,2]
[377230025,1754305890381,-531.77,0.0003863,2]
[377230026,1754305890390,-736.813337,0.0003863,2]
[377230027,1754305890400,-400.0,0.0003863,2]
[377230028,1754305890409,-1790.09,0.0003863,2]
[377230029,1754305890419,-994.35,0.0003863,2]
[377230030,1754305890429,-1207.63,0.0003863,2]
[377230031,1754305890438,-412.38058127,0.0003863,2]
[377230032,1754305890448,-1044.0,0.0003863,2]
[377230033,1754305890457,-400.0,0.0003863,2]
[377230034,1754305890467,-1697.44,0.0003863,2]
[377230035,1754305890477,-1153.38,0.0003863,2]
[377230036,1754305890486,-472.180256,0.0003863,2]
[377230037,1754305890497,-1273.07,0.0003863,2]
[377230038,1754305890507,-1809.15,0.0003863,2]
[377230039,1754305890517,-400.0,0.0003863,2]
[377230040,1754305890527,-971.37,0.0003863,2]
[377230041,1754305890537,-400.0,0.0003863,2]
[377230042,1754305890546,-1518.17,0.0003863,2]
[377230043,1754305890556,-596.6,0.0003863,2]
[377230044,1754305890566,-8777.73,0.0003863,2]
[377230045,1754305890576,-6082.8,0.0003863,2]
[377230046,1754305890586,-2275.44,0.0003863,2]
[377230047,1754305890595,-752.876045,0.0003863,2]
[377230048,1754305890610,-1600.04,0.0003863,2]
[377230049,1754305890619,-1037.03,0.0003863,2]
[377230050,1754305890629,-400.0,0.0003863,2]
[377230051,1754305890639,-490.62,0.0003863,2]
[377230052,1754305890651,-599.54,0.0003863,2]
[377230053,1754305890661,-1213.48,0.0003863,2]
[377230054,1754305890670,-797.89,0.0003863,2]
[377230055,1754305890679,-1097.82,0.0003863,2]
[377230056,1754305890689,-400.0,0.0003863,2]
[377230057,1754305890698,-596.19,0.0003863,2]
[377230058,1754305890708,-448.66,0.0003863,2]
[377230059,1754305890718,-400.0,0.0003863,2]
[377230060,1754305890727,-10707.5,0.0003863,2]
[377230061,1754305890748,-151.0,0.0003863,14]
[377230062,1754305890757,-4934.5,0.0003863,2]
[377230063,1754305890767,-400.0,0.0003863,2]
[377230064,1754305890776,-1936.12,0.0003863,2]
[377230065,1754305890786,-400.0,0.0003863,2]
[377230066,1754305890795,-2575.64,0.0003863,2]
[377230067,1754305890805,-400.0,0.0003863,2]
[377230068,1754305890814,-2188.32,0.0003863,2]
[377230069,1754305890823,-400.0,0.0003863,2]
[377230070,1754305890834,-400.0,0.0003863,2]
[377230071,1754305890843,-400.0,0.0003863,2]
[377230072,1754305890853,-1048.1,0.0003863,2]
[377230073,1754305890862,-586.94,0.0003863,2]
[377230074,1754305890872,-1283.58,0.0003863,2]
[377230075,1754305890881,-400.0,0.0003863,2]
[377230076,1754305890891,-1614.51,0.0003863,2]
[377230077,1754305890902,-400.0,0.0003863,2]
[377230078,1754305890914,-1367.27,0.0003863,2]
[377230079,1754305890924,-400.0,0.0003863,2]
[377230080,1754305890933,-400.0,0.0003863,2]
[377230081,1754305890942,-3431.45,0.0003863,2]
[377230082,1754305890954,-958.06,0.0003863,2]
[377230083,1754305890964,-400.0,0.0003863,2]
[377230084,1754305890974,-500.49,0.0003863,2]
[377230085,1754305890983,-1799.3,0.0003863,2]
[377230086,1754305890994,-1400.57,0.0003863,2]
[377230087,1754305891004,-16704.11,0.0003863,2]
[377230088,1754305891013,-953.11,0.0003863,2]
[377230089,1754305891124,-400.0,0.0003863,2]
[377230090,1754305891134,-1339.76,0.0003863,2]
[377230091,1754305891143,-151.0,0.0003863,14]
[377230092,1754305891152,-4814.39,0.0003863,2]
[377230093,1754305891162,-1254.59,0.0003863,2]
[377230094,1754305891171,-1128.88,0.0003863,2]
[377230095,1754305891180,-400.0,0.0003863,2]
[377230096,1754305891189,-871.27,0.0003863,2]
[377230097,1754305891199,-400.0,0.0003863,2]
[377230098,1754305891209,-2112.05,0.0003863,2]
[377230099,1754305891219,-1494.19,0.0003863,2]
[377230100,1754305891228,-1442.54,0.0003863,2]
[377230101,1754305891238,-525.6,0.0003863,2]
[377230102,1754305891247,-152.444559,0.0003863,14]
[377230103,1754305891257,-637.09,0.0003863,2]
[377230104,1754305891266,-400.0,0.0003863,2]
[377230105,1754305891276,-2192.65,0.0003863,2]
[377230106,1754305891284,-2310.1,0.0003863,2]
[377230107,1754305891294,-571.02,0.0003863,2]
[377230108,1754305891303,-3310.33,0.0003863,2]
[377230109,1754305891312,-1651.01,0.0003863,2]
[377230110,1754305891322,-400.0,0.0003863,2]
[377230111,1754305891332,-845.12,0.0003863,2]
[377230112,1754305891341,-533.36,0.0003863,2]
[377230113,1754305891351,-400.0,0.0003863,2]
[377230114,1754305891360,-1650.75,0.0003863,2]
[377230115,1754305891369,-781.29,0.0003863,2]
[377230116,1754305891378,-429.82,0.0003863,2]
[377230117,1754305891388,-203.56,0.0003863,2]
[377230118,1754305891397,-400.0,0.0003863,2]
[377230119,1754305891406,-1177.78,0.0003863,2]
[377230120,1754305891415,-400.0,0.0003863,2]
[377230121,1754305891424,-33528.68283131,0.0003863,2]
[377230122,1754305891433,-281.71758358,0.00038639,15]
[377230123,1754305891442,-168.74495425,0.00038656,2]
[377230124,1754305891452,-501.25218818,0.00038673,5]
[377230125,1754305891462,-501.0987251,0.00038673,5]
[377230126,1754305891471,-500.0,0.00038673,5]
[377230127,1754305891480,-500.78520876,0.00038673,5]
[377230128,1754305891489,-500.0,0.00038673,5]
[377230129,1754305891498,-441.28308254,0.00038673,2]
[377230130,1754305891507,-150.0,0.00038673,3]
[377230131,1754305891517,-500.0,0.00038673,5]
[377230132,1754305891526,-155.24603399,0.00038673,5]
[377230133,1754305891535,-154.34147298,0.00038673,5]
[377230134,1754305891545,-29999.99,0.00038678,30]
[377230135,1754305891554,-19999.99,0.00038678,2]
[377230136,1754305891564,-500.0,0.00038689,2]
[377230137,1754305891573,-62748.24,0.000387,14]
[377230138,1754305891583,-151.605646,0.000387,14]
[377230139,1754305891592,-6200.0,0.000387,14]
[377230140,1754305891602,-20268.46067858,0.000387,18]
[377230141,1754305891611,-151.0,0.00038708,14]
[377230142,1754305891620,-328.27396405,0.00038712,2]
[377230143,1754305891629,-1000.0,0.00038721,5]
[377230144,1754305891638,-958.8598355,0.00038721,5]
[377230145,1754305891647,-500.0,0.00038731,2]
[377230146,1754305891657,-200.0,0.00038731,2]
[377230147,1754305891667,-200.0,0.00038731,2]
[377230148,1754305891676,-2063.57057137,0.00038748,2]
[377230149,1754305891685,-501.16211184,0.00038782,2]
[377230150,1754305891694,-1200.0,0.000388,14]
[377230151,1754305891703,-568.4,0.000388,2]
[377230152,1754305891712,-500.0,0.00038801,2]
[377230153,1754305891722,-500.0,0.00038803,2]
[377230154,1754305891731,-1453.57,0.00038803,2]
[377230155,1754305891740,-150.43700417,0.00038804,2]
[377230156,1754305891750,-1566.78415294,0.00038804,2]
[377230157,1754305891759,-281.71758358,0.00038849,15]
[377230158,1754305891769,-2793.1,0.00038865,2]
[377230159,1754305891778,-500.0,0.00038893,2]
[377230160,1754305891787,-714.04,0.000389,30]
[377230161,1754305891797,-1200.0,0.000389,14]
[377230162,1754305891806,-2267.57839661,0.000389,39]
[377230163,1754305891816,-156.383977,0.000389,14]
[377230164,1754305891825,-151.0,0.000389,14]
[377230165,1754305891835,-151.0,0.000389,14]
[377230166,1754305891845,-666.0,0.00038903,10]
[377230167,1754305891854,-300.0,0.00038903,10]
[377230168,1754305891865,-313.9750018,0.00038903,2]
[377230169,1754305891874,-300.0,0.00038903,10]
[377230170,1754305891883,-312.01142982,0.00038903,10]
[377230171,1754305891893,-682.02133868,0.00038903,10]
[377230172,1754305891905,-500.0,0.00038903,2]
[377230173,1754305891915,-539.9810812,0.00038903,2]
[377230174,1754305891924,-500.0,0.00038903,2]
[377230175,1754305891933,-504.52,0.00038903,2]
[377230176,1754305891942,-504.52,0.00038903,2]
[377230177,1754305891952,-504.52,0.00038903,2]
[377230178,1754305891961,-504.52,0.00038903,2]
[377230179,1754305891970,-504.52,0.00038903,2]
[377230180,1754305891979,-504.52,0.00038903,2]
[377230181,1754305891989,-504.52,0.00038903,2]
[377230182,1754305891998,-504.52,0.00038903,2]
[377230183,1754305892007,-504.60894058,0.00038903,2]
[377230184,1754305892017,-2793.1,0.00038903,2]
[377230185,1754305892026,-2793.1,0.00038903,2]
[377230186,1754305892035,-2793.1,0.00038903,2]
[377230187,1754305892044,-2793.1,0.00038903,2]
[377230188,1754305892054,-151.0,0.00038903,14]
[377230189,1754305892063,-778.68,0.00038903,2]
[377230190,1754305892073,-778.68,0.00038903,2]
[377230191,1754305892082,-778.68,0.00038903,2]
[377230192,1754305892091,-778.68,0.00038903,2]
[377230193,1754305892100,-778.68,0.00038903,2]
[377230194,1754305892110,-778.68,0.00038903,2]
[377230195,1754305892119,-778.68,0.00038903,2]
[377230196,1754305892129,-778.68,0.00038903,2]
[377230197,1754305892139,-778.85772185,0.00038903,2]
[377230198,1754305892148,-151.0,0.00038903,14]
[377230199,1754305892158,-1206.28,0.00038903,2]
[377230200,1754305892167,-1206.28,0.00038903,2]
[377230201,1754305892177,-1206.28,0.00038903,2]
[377230202,1754305892186,-1206.28,0.00038903,2]
[377230203,1754305892197,-1206.28,0.00038903,2]
[377230204,1754305892207,-1206.28,0.00038903,2]
[377230205,1754305892216,-1206.28,0.00038903,2]
[377230206,1754305892225,-1206.46523173,0.00038903,2]
[377230207,1754305892234,-500.0,0.00038903,2]
[377230208,1754305892243,-500.0,0.00038903,2]
[377230209,1754305892251,-500.0,0.00038903,2]
[377230210,1754305892260,-500.0,0.00038903,2]
[377230211,1754305892269,-383.34,0.00038903,2]
[377230212,1754305892279,-1453.57,0.00038903,2]
[377230213,1754305892288,-1453.57,0.00038903,2]
[377230214,1754305892298,-1453.57,0.00038903,2]
[377230215,1754305892307,-1453.57,0.00038903,2]
[377230216,1754305892317,-1453.57,0.00038903,2]
[377230217,1754305892326,-1453.57,0.00038903,2]
[377230218,1754305892335,-1453.78778857,0.00038903,2]
[377230219,1754305892345,-683.431269,0.00038903,14]
[377230220,1754305892354,-568.4,0.00038903,2]
[377230221,1754305892363,-568.4,0.00038903,2]
[377230222,1754305892372,-568.4,0.00038903,2]
[377230223,1754305892382,-568.4,0.00038903,2]
[377230224,1754305892392,-568.4,0.00038903,2]
[377230225,1754305892401,-568.4,0.00038903,2]
[377230226,1754305892410,-568.48331549,0.00038903,2]
[377230227,1754305892420,-683.431269,0.00038903,14]
[377230228,1754305892430,-251.73810859,0.00038904,21]
[377230229,1754305892439,-323726.69433231,0.00038904,2]
[377230230,1754305892448,-10193.73719293,0.00038904,2]
[377230231,1754305892458,-151.0,0.00038904,14]
[377230232,1754305892468,-151.0,0.00038904,14]
[377230233,1754305892478,-151.0,0.00038904,14]
[377230234,1754305892488,-151.0,0.00038904,14]
[377230235,1754305892497,-151.0,0.00038904,14]
[377230236,1754305892506,-151.0,0.00038904,14]
[377230237,1754305892516,-151.0,0.00038904,14]
[377230238,1754305892526,-151.0,0.00038904,14]
[377230239,1754305892536,-151.0,0.00038904,14]
[377230240,1754305892546,-151.769587,0.00038904,14]
[377230241,1754305892556,-158.460527,0.00038904,14]
[377230242,1754305892567,-151.0,0.00038904,14]
[377230243,1754305892577,-316.4866995,0.00038904,2]
[377230244,1754305892587,-402.59478859,0.00038904,2]
[377230245,1754305892597,-153.924964,0.00038904,14]
[377230246,1754305892607,-254.712517,0.00038904,14]
[377230247,1754305892616,-400.0,0.00038904,2]
[377230248,1754305892626,-254.712517,0.00038904,14]
[377230249,1754305892636,-400.0,0.00038904,2]
[377230250,1754305892646,-400.0,0.00038904,2]
[377230251,1754305892656,-400.0,0.00038904,2]
[377230252,1754305892665,-151.0,0.00038904,14]
[377230253,1754305892675,-400.0,0.00038904,2]
[377230254,1754305892685,-151.0,0.00038904,14]
[377230255,1754305892695,-298.911584,0.00038904,14]
[377230256,1754305892705,-151.0,0.00038904,14]
[377230257,1754305892714,-298.911584,0.00038904,14]
[377230258,1754305892724,-204.18336474,0.00038904,2]
[377230259,1754305892734,-400.0,0.00038904,2]
[377230260,1754305892744,-462.8533397,0.00038904,2]
[377230261,1754305892753,-284.18028328,0.00038904,2]
[377230262,1754305892762,-400.0,0.00038904,2]
[377230263,1754305892772,-400.0,0.00038904,2]
[377230264,1754305892781,-400.0,0.00038904,2]
[377230265,1754305892791,-400.0,0.00038904,2]
[377230266,1754305892801,-400.0,0.00038904,2]
[377230267,1754305892811,-400.0,0.00038904,2]
[377230268,1754305892821,-400.0,0.00038904,2]
[377230269,1754305892831,-400.0,0.00038904,2]
[377230270,1754305892841,-400.0,0.00038904,2]
[377230271,1754305892850,-207.32598804,0.00038904,2]
[377230272,1754305892860,-400.0,0.00038904,2]
[377230273,1754305892869,-400.0,0.00038904,2]
[377230274,1754305892879,-404.5666031,0.00038904,2]
[377230275,1754305892889,-400.0,0.00038904,2]
[377230276,1754305892898,-400.0,0.00038904,2]
[377230277,1754305892912,-400.0,0.00038904,2]
[377230278,1754305892921,-400.0,0.00038904,2]
[377230279,1754305892932,-400.0,0.00038904,2]
[377230280,1754305892941,-400.0,0.00038904,2]
[377230281,1754305892953,-400.0,0.00038904,2]
[377230282,1754305892963,-400.0,0.00038904,2]
[377230283,1754305892973,-400.0,0.00038904,2]
[377230284,1754305892985,-206.738021,0.00038904,14]
[377230285,1754305892995,-206.738021,0.00038904,14]
[377230286,1754305893004,-400.0,0.00038904,2]
[377230287,1754305893014,-400.0,0.00038904,2]
[377230288,1754305893024,-400.0,0.00038904,2]
[377230289,1754305893035,-400.0,0.00038904,2]
[377230290,1754305893045,-400.0,0.00038904,2]
[377230291,1754305893056,-400.0,0.00038904,2]
[377230292,1754305893066,-400.0,0.00038904,2]
[377230293,1754305893077,-400.0,0.00038904,2]
[377230294,1754305893088,-400.0,0.00038904,2]
[377230295,1754305893098,-400.0,0.00038904,2]
[377230296,1754305893109,-547.58,0.00038904,2]
[377230297,1754305893119,-405.94908318,0.00038904,2]
[377230298,1754305893129,-458.04,0.00038904,2]
[377230299,1754305893139,-359.34961677,0.00038904,2]
[377230300,1754305893150,-1200.66,0.00038904,2]
[377230301,1754305893160,-586.47,0.00038904,2]
[377230302,1754305893170,-520.3,0.00038904,2]
[377230303,1754305893182,-400.0,0.00038904,2]
[377230304,1754305893192,-400.0,0.00038904,2]
[377230305,1754305893202,-400.0,0.00038904,2]
[377230306,1754305893213,-400.0,0.00038904,2]
[377230307,1754305893223,-514.446378,0.00038904,14]
[377230308,1754305893233,-326.29092853,0.00038904,2]
[377230309,1754305893243,-452.57,0.00038904,2]
[377230310,1754305893253,-400.0,0.00038904,2]
[377230311,1754305893263,-514.446378,0.00038904,14]
[377230312,1754305893273,-400.0,0.00038904,2]
[377230313,1754305893283,-178.82210382,0.00038904,2]
[377230314,1754305893293,-151.0,0.00038904,14]
[377230315,1754305893303,-472.84,0.00038904,2]
[377230316,1754305893313,-400.0,0.00038904,2]
[377230317,1754305893323,-400.0,0.00038904,2]
[377230318,1754305893333,-1404.01,0.00038904,2]
[377230319,1754305893343,-400.0,0.00038904,2]
[377230320,1754305893353,-400.0,0.00038904,2]
[377230321,1754305893363,-1341.8,0.00038904,2]
[377230322,1754305893373,-400.0,0.00038904,2]
[377230323,1754305893384,-400.0,0.00038904,2]
[377230324,1754305893395,-484.06,0.00038904,2]
[377230325,1754305893406,-1693.03,0.00038904,2]
[377230326,1754305893417,-151.0,0.00038904,14]
[377230327,1754305893427,-667.41,0.00038904,2]
[377230328,1754305893438,-400.0,0.00038904,2]
[377230329,1754305893448,-400.0,0.00038904,2]
[377230330,1754305893459,-400.0,0.00038904,2]
[377230331,1754305893470,-151.0,0.00038904,14]
[377230332,1754305893480,-537.19,0.00038904,2]
[377230333,1754305893490,-849.99,0.00038904,2]
[377230334,1754305893500,-151.0,0.00038904,14]
[377230335,1754305893510,-931.14,0.00038904,2]
[377230336,1754305893520,-458.07,0.00038904,2]
[377230337,1754305893530,-1076.15,0.00038904,2]
[377230338,1754305893540,-1903.28,0.00038904,2]
[377230339,1754305893550,-288.06486703,0.00038904,2]
[377230340,1754305893560,-400.0,0.00038904,2]
[377230341,1754305893569,-400.0,0.00038904,2]
[377230342,1754305893580,-400.0,0.00038904,2]
[377230343,1754305893590,-643.67,0.00038904,2]
[377230344,1754305893601,-1064.8,0.00038904,2]
[377230345,1754305893611,-400.0,0.00038904,2]
[377230346,1754305893621,-595.01,0.00038904,2]
[377230347,1754305893631,-480.0,0.00038904,2]
[377230348,1754305893641,-400.0,0.00038904,2]
[377230349,1754305893652,-400.0,0.00038904,2]
[377230350,1754305893662,-1756.29,0.00038904,2]
[377230351,1754305893672,-824.14,0.00038904,2]
[377230352,1754305893682,-400.0,0.00038904,2]
[377230353,1754305893692,-1696.93,0.00038904,2]
[377230354,1754305893702,-400.0,0.00038904,2]
[377230355,1754305893713,-400.0,0.00038904,2]
[377230356,1754305893723,-400.0,0.00038904,2]
[377230357,1754305893733,-767.86,0.00038904,2]
[377230358,1754305893743,-401.56241758,0.00038904,2]
[377230359,1754305893752,-1492.28,0.00038904,2]
[377230360,1754305893763,-400.0,0.00038904,2]
[377230361,1754305893772,-400.0,0.00038904,2]
[377230362,1754305893783,-400.0,0.00038904,2]
[377230363,1754305893793,-400.0,0.00038904,2]
[377230364,1754305893803,-185.74,0.00038904,2]
[377230365,1754305893813,-661.87,0.00038904,2]
[377230366,1754305893823,-400.0,0.00038904,2]
[377230367,1754305893833,-211.940464,0.00038904,14]
[377230368,1754305893843,-400.0,0.00038904,2]
[377230369,1754305893853,-400.0,0.00038904,2]
[377230370,1754305893863,-400.0,0.00038904,2]
[377230371,1754305893873,-400.0,0.00038904,2]
[377230372,1754305893883,-400.0,0.00038904,2]
[377230373,1754305893893,-400.45,0.00038904,2]
[377230374,1754305893911,-1939.24,0.00038904,2]
[377230375,1754305893921,-400.0,0.00038904,2]
[377230376,1754305893932,-211.940464,0.00038904,14]
[377230377,1754305893942,-400.0,0.00038904,2]
[377230378,1754305893953,-786.11,0.00038904,2]
[377230379,1754305893964,-835.46,0.00038904,2]
[377230380,1754305893974,-1820.66,0.00038904,2]
[377230381,1754305893986,-463.48,0.00038904,2]
[377230382,1754305893997,-400.0,0.00038904,2]
[377230383,1754305894007,-400.0,0.00038904,2]
[377230384,1754305894018,-1385.33,0.00038904,2]
[377230385,1754305894028,-400.0,0.00038904,2]
[377230386,1754305894039,-403.54075962,0.00038904,2]
[377230387,1754305894050,-400.0,0.00038904,2]
[377230388,1754305894061,-498.89,0.00038904,2]
[377230389,1754305894071,-499.13,0.00038904,2]
[377230390,1754305894082,-1516.62,0.00038904,2]
[377230391,1754305894092,-900.0,0.00038904,2]
[377230392,1754305894103,-400.0,0.00038904,2]
[377230393,1754305894113,-400.0,0.00038904,2]
[377230394,1754305894124,-400.0,0.00038904,2]
[377230395,1754305894135,-400.0,0.00038904,2]
[377230396,1754305894145,-550.11,0.00038904,2]
[377230397,1754305894156,-400.0,0.00038904,2]
[377230398,1754305894166,-454.35,0.00038904,2]
[377230399,1754305894177,-1067.05,0.00038904,2]
[377230400,1754305894188,-400.0,0.00038904,2]
[377230401,1754305894199,-915.17,0.00038904,2]
[377230402,1754305894209,-1153.57,0.00038904,2]
[377230403,1754305894219,-470.47,0.00038904,2]
[377230404,1754305894229,-400.0,0.00038904,2]
[377230405,1754305894239,-400.0,0.00038904,2]
[377230406,1754305894249,-400.0,0.00038904,2]
[377230407,1754305894260,-468.79359531,0.00038904,2]
[377230408,1754305894270,-400.0,0.00038904,2]
[377230409,1754305894281,-151.0,0.00038904,14]
[377230410,1754305894291,-1488.11,0.00038904,2]
[377230411,1754305894301,-742.88,0.00038904,2]
[377230412,1754305894312,-661.14,0.00038904,2]
[377230413,1754305894322,-400.0,0.00038904,2]
[377230414,1754305894332,-400.0,0.00038904,2]
[377230415,1754305894341,-441.54,0.00038904,2]
[377230416,1754305894351,-916.79,0.00038904,2]
[377230417,1754305894361,-1102.43,0.00038904,2]
[377230418,1754305894371,-587.55,0.00038904,2]
[377230419,1754305894381,-424.37,0.00038904,2]
[377230420,1754305894391,-400.0,0.00038904,2]
[377230421,1754305894400,-400.0,0.00038904,2]
[377230422,1754305894410,-400.0,0.00038904,2]
[377230423,1754305894420,-400.0,0.00038904,2]
[377230424,1754305894430,-1819.37,0.00038904,2]
[377230425,1754305894440,-1188.91,0.00038904,2]